[Event "CZE-tht Extraliga 2018-19"]
[Site "Czech Republic"]
[Date "2019.02.09"]
[Round "7"]
[White "Jaracz, Pawel"]
[Black "Kanovsky, David"]
[Result "1-0"]
[ECO "C07"]
[WhiteElo "2464"]
[BlackElo "2424"]
[Annotator "ChessBase"]
[PlyCount "51"]
[EventDate "2018.11.03"]
[EventType "team-tourn"]
[EventCountry "CZE"]
[SourceTitle "playchess.com"]
[Source "ChessBase"]
[SourceQuality "1"]
[WhiteTeam "Turnov"]
[BlackTeam "Poruba"]
[TimeControl "40/5400+30:1800+30"]

1. e4 {[%emt 0:00:00]} e6 {[%emt 0:00:00]} 2. d4 {[%emt 0:00:20]} d5 {[%emt 0:00:00]} 3. Nd2 {[%emt 0:00:06]} c5 {[%emt 0:00:13]} 4. Ngf3 {[%emt 0:01:19]} a6 {[%emt 0:00:55]} 5. dxc5 {[%emt 0:01:28]} Bxc5 {[%emt 0:02:17]} 6. Bd3 {[%emt 0:00:27]} Nc6 {[%emt 0:00:57]} 7. O-O {[%emt 0:01:10]} Nge7 {[%emt 0:03:14]} 8. exd5 {[%emt 0:01:25]} exd5 {[%emt 0:00:53]} 9. Nb3 {[%emt 0:01:44]} Bb6 {[%emt 0:01:02]} 10. Re1 {[%emt 0:06:56]} Bg4 {[%emt 0:02:42]} 11. Be3 {[%emt 0:03:47]} d4 {[%emt 0:04:06]} 12. Bf4 {[%emt 0:04:26]} h6 {[%emt 0:05:33]} 13. h3 {[%emt 0:14:52]} Be6 {[%emt 0:03:08]} 14. Ne5 {[%emt 0:06:28]} O-O {[%emt 0:30:25]} 15. Qh5 {[%emt 0:03:27]} Nxe5 {[%emt 0:01:20]} 16. Bxe5 {[%emt 0:01:03]} Bxb3 {[%emt 0:01:22]} 17. axb3 {[%emt 0:00:36]} Nc6 {[%emt 0:00:19]} 18. Qf5 {[%emt 0:14:33]} g6 {[%emt 0:00:44]} 19. Qf3 {[%emt 0:00:09]} Re8 {[%emt 0:06:54]} 20. Bf6 {[%emt 0:02:32]} Qd7 {[%emt 0:01:17]} 21. Qf4 {[%emt 0:07:54]} Kh7 {[%emt 0:02:32]} 22. h4 {[%emt 0:00:29]} Nb4 {[%emt 0:15:59]} 23. Be4 {[%emt 0:05:06]} Re6 {[%emt 0:01:32]} 24. c3 {[%emt 0:02:38]} Bc7 {[%emt 0:06:01]} 25. Qg4 {[%emt 0:00:33]} Rae8 {[%emt 0:01:02]} 26. h5 {[%emt 0:01:11]} 1-0

[Event "CZE-tht Extraliga 2018-19"]
[Site "Czech Republic"]
[Date "2019.02.09"]
[Round "7"]
[White "Vykouk, Jan"]
[Black "Bobras, Piotr"]
[Result "1-0"]
[ECO "B90"]
[WhiteElo "2438"]
[BlackElo "2488"]
[Annotator "ChessBase"]
[PlyCount "80"]
[EventDate "2018.11.03"]
[EventType "team-tourn"]
[EventCountry "CZE"]
[SourceTitle "playchess.com"]
[Source "ChessBase"]
[SourceQuality "1"]
[WhiteTeam "Turnov"]
[BlackTeam "Poruba"]
[TimeControl "40/5400+30:1800+30"]

1. e4 {[%emt 0:00:00]} c5 {[%emt 0:00:00]} 2. Nf3 {[%emt 0:00:00]} d6 {[%emt 0:00:00]} 3. d4 {[%emt 0:00:00]} cxd4 {[%emt 0:00:00]} 4. Nxd4 {[%emt 0:00:00]} Nf6 {[%emt 0:00:00]} 5. Nc3 {[%emt 0:00:00]} a6 {[%emt 0:00:01]} 6. Be3 {[%emt 0:00:05]} e5 {[%emt 0:00:10]} 7. Nb3 {[%emt 0:00:06]} Be7 {[%emt 0:00:25]} 8. f3 {[%emt 0:00:13]} Be6 {[%emt 0:00:12]} 9. Qd2 {[%emt 0:00:05]} O-O {[%emt 0:00:30]} 10. O-O-O {[%emt 0:00:41]} Nbd7 {[%emt 0:00:31]} 11. g4 {[%emt 0:00:10]} b5 {[%emt 0:00:04]} 12. g5 {[%emt 0:00:18]} b4 {[%emt 0:00:05]} 13. Ne2 {[%emt 0:00:15]} Ne8 {[%emt 0:00:14]} 14. f4 {[%emt 0:00:14]} a5 {[%emt 0:00:48]} 15. f5 {[%emt 0:00:08]} Bxb3 {[%emt 0:00:33]} 16. cxb3 {[%emt 0:00:06]} a4 {[%emt 0:00:05]} 17. Kb1 {[%emt 0:00:04]} axb3 {[%emt 0:11:56]} 18. Nc1 {[%emt 0:00:04]} bxa2+ {[%emt 0:31:31]} 19. Ka1 {[%emt 0:00:04]} Qc8 {[%emt 0:22:19]} 20. Nb3 {[%emt 0:11:07]} Bd8 {[%emt 0:14:34]} 21. Rc1 {[%emt 0:01:19]} Qb7 {[%emt 0:06:20]} 22. Bc4 {[%emt 0:00:06]} Bb6 {[%emt 0:01:08]} 23. Bd5 {[%emt 0:06:49]} Bxe3 {[%emt 0:00:06]} 24. Qxe3 {[%emt 0:00:15]} Qa7 {[%emt 0:00:02]} 25. Qh3 {[%emt 0:00:06]} Rd8 {[%emt 0:04:19]} 26. Rhg1 {[%emt 0:01:26]} Nb6 {[%emt 0:03:24]} 27. g6 {[%emt 0:02:32]} Nf6 {[%emt 0:00:14]} 28. gxf7+ {[%emt 0:13:38]} Kh8 {[%emt 0:00:25]} 29. Qg2 {[%emt 0:01:23]} Rxf7 {[%emt 0:00:44]} 30. Bxf7 {[%emt 0:00:05]} Qxf7 {[%emt 0:00:03]} 31. Rc6 {[%emt 0:01:55]} Na4 {[%emt 0:02:39]} 32. Qc2 {[%emt 0:01:56]} Nc5 {[%emt 0:01:55]} 33. Nxc5 {[%emt 0:02:54]} dxc5 {[%emt 0:00:03]} 34. Rxc5 {[%emt 0:05:19]} b3 {[%emt 0:00:15]} 35. Qe2 {[%emt 0:01:21]} Qa7 {[%emt 0:01:20]} 36. Rgc1 {[%emt 0:00:26]} h6 {[%emt 0:00:31]} 37. R5c3 {[%emt 0:03:06]} Rd4 {[%emt 0:00:28]} 38. Rc7 {[%emt 0:03:47]} Qa5 {[%emt 0:00:33]} 39. Rc8+ {[%emt 0:00:10]} Rd8 {[%emt 0:00:29]} 40. Qe1 {[%emt 0:06:15]} Qb6 {[%emt 0:00:00]} 1-0

[Event "CZE-tht Extraliga 2018-19"]
[Site "Czech Republic"]
[Date "2019.02.09"]
[Round "7"]
[White "Londyn, Radek"]
[Black "Vlasak, Lukas"]
[Result "1/2-1/2"]
[ECO "B23"]
[WhiteElo "2399"]
[BlackElo "2416"]
[Annotator "NA"]
[PlyCount "85"]
[EventDate "2018.11.03"]
[EventType "team-tourn"]
[EventCountry "CZE"]
[SourceTitle "playchess.com"]
[Source "ChessBase"]
[SourceQuality "1"]
[WhiteTeam "Poruba"]
[BlackTeam "Turnov"]
[TimeControl "40/5400+30:1800+30"]

1. e4 {[%emt 0:00:00]} c5 {[%emt 0:00:00]} 2. Nc3 {[%emt 0:00:00]} g6 {[%emt 0:00:46]} 3. d4 {[%emt 0:00:02]} Bg7 {[%emt 0:00:31]} 4. d5 {[%emt 0:01:04]} d6 {[%emt 0:01:08]} 5. Bb5+ {[%emt 0:01:03]} Bd7 {[%emt 0:00:09]} 6. a4 {[%emt 0:00:28]} Nf6 {[%emt 0:00:06]} 7. Nf3 {[%emt 0:01:04]} O-O {[%emt 0:00:07]} 8. h3 {[%emt 0:00:39]} Na6 {[%emt 0:17:15]} 9. O-O {[%emt 0:00:37]} Nc7 {[%emt 0:03:30] A43: Schmid Benoni} 10. Bxd7 {[%emt 0:04:54]} (10. Bc4 a6 11. e5 dxe5 12. Nxe5 Be8 13. Bf4 b5 14. axb5 axb5 15. Rxa8 Qxa8 16. Nf3 bxc4 17. Bxc7 {½-½ (44) Wang,Y (2716)-Malakhov,V (2732) Ningbo 2010}) 10... Nxd7 {[%emt 0:07:36] LiveBook: 7 Games} 11. Bg5 {[%emt 0:04:44]} a6 $146 {[%emt 0:03:38]} ({Predecessor:} 11... h6 12. Be3 a6 13. a5 Rb8 14. Qe2 b5 15. axb6 Rxb6 16. Na4 Rb8 17. c4 {½-½ (44) Herder,D (2251)-Huber,G (2243) Richmond 2002}) 12. Qd2 {[%emt 0:00:36]} Re8 {[%emt 0:01:25]} 13. a5 {[%emt 0:06:31]} Nb5 {[%emt 0:07:21]} 14. Nd1 {[%emt 0:09:19]} Nd4 {[%emt 0:02:35]} 15. Nxd4 {[%emt 0:16:12]} cxd4 {[%emt 0:01:22]} 16. f3 {[%emt 0:04:01]} Qc7 {[%emt 0:06:54]} 17. Ra2 {[%emt 0:00:22]} Rac8 {[%emt 0:01:14]} 18. b3 {[%emt 0:00:04]} e6 $11 {[%emt 0:15:15]} 19. dxe6 {[%emt 0:00:01]} fxe6 {[%emt 0:00:11]} 20. Nf2 {[%emt 0:00:14]} Qc3 {[%emt 0:00:27]} 21. Qd1 {[%emt 0:07:20]} Qc6 {[%emt 0:05:26]} 22. Kh1 {[%emt 0:04:42]} Qb5 {[%emt 0:07:12]} 23. Bd2 {[%emt 0:02:55]} Nf6 {[%emt 0:01:51]} 24. Nd3 {[%emt 0:01:34]} e5 {[%emt 0:01:24]} 25. Re1 {[%emt 0:03:09]} d5 {[%emt 0:01:37]} 26. Ra4 {[%emt 0:08:08]} dxe4 {[%emt 0:03:08]} 27. fxe4 {[%emt 0:00:03]} Qd7 {[%emt 0:03:18]} 28. Kg1 {[%emt 0:03:34]} Qc6 {[%emt 0:06:13]} 29. Rc4 {[%emt 0:01:31]} Qd7 {[%emt 0:00:08]} 30. Nb2 {[%emt 0:01:23]} Qe6 {[%emt 0:02:15]} 31. Rxc8 {[%emt 0:02:02]} Rxc8 {[%emt 0:00:05]} 32. Nc4 {[%emt 0:00:13]} Nd7 {[%emt 0:00:05]} 33. Qg4 {[%emt 0:06:08]} Qxg4 {[%emt 0:00:36]} 34. hxg4 {[%emt 0:00:02]} Rc6 {[%emt 0:01:00]} 35. g5 {[%emt 0:02:30]} b5 {[%emt 0:00:28]} 36. axb6 {[%emt 0:00:36]} Nxb6 {[%emt 0:00:05]} 37. Nxb6 {[%emt 0:00:07]} Rxb6 {[%emt 0:00:05]} 38. Ra1 {[%emt 0:00:47]} d3 {[%emt 0:01:50]} 39. cxd3 {[%emt 0:06:55]} Rxb3 {[%emt 0:00:05]} 40. Rxa6 {[%emt 0:01:23]} Rxd3 {[%emt 0:00:05]} 41. Ra8+ {[%emt 0:31:36]} Kf7 {[%emt 0:30:37]} 42. Ra7+ {[%emt 0:00:07]} Kg8 {[%emt 0:00:06]} 43. Ra8+ 1/2-1/2

[Event "CZE-tht Extraliga 2018-19"]
[Site "Czech Republic"]
[Date "2019.02.09"]
[Round "7"]
[White "Sharashenidze, Akaki"]
[Black "Studnicka, Tomas"]
[Result "0-1"]
[ECO "C49"]
[WhiteElo "2367"]
[BlackElo "2315"]
[Annotator "NA"]
[PlyCount "98"]
[EventDate "2018.11.03"]
[EventType "team-tourn"]
[EventCountry "CZE"]
[SourceTitle "playchess.com"]
[Source "ChessBase"]
[SourceQuality "1"]
[WhiteTeam "Poruba"]
[BlackTeam "Turnov"]
[TimeControl "40/5400+30:1800+30"]

1. e4 {[%emt 0:00:00]} e5 {[%emt 0:00:00]} 2. Nf3 {[%emt 0:00:00]} Nf6 {[%emt 0:00:00]} 3. Nc3 {[%emt 0:02:04]} Nc6 {[%emt 0:00:00]} 4. Bb5 {[%emt 0:01:35]} Bb4 {[%emt 0:00:00]} 5. d3 {[%emt 0:02:08]} d6 {[%emt 0:00:17]} 6. Bg5 {[%emt 0:00:59]} h6 {[%emt 0:01:42] C49: Four Knights: 4 Bb5 Bb4} 7. Bh4 {[%emt 0:03:24]} Bd7 {[%emt 0:01:52]} (7... g5 8. Bg3 Bg4 9. h4 Nh5 10. hxg5 hxg5 11. Qd2 Bxf3 12. gxf3 Qf6 13. O-O-O O-O-O 14. a3 Bxc3 15. bxc3 Qxf3 16. Bxc6 bxc6 17. Qxg5 {0-1 (36) Legaspi,R (2315)-Iuldachev,S (2520) Kuala Lumpur 2008}) 8. a3 $146 {[%emt 0:03:10]} ({Predecessor:} 8. O-O g5 9. Bg3 h5 10. h4 Bg4 11. Nd5 Nxd5 12. exd5 a6 13. Bxc6+ bxc6 14. c3 {½-½ (28) Pulpan,J (2102)-Gazik,I (2321) Litomysl 2014}) 8... Bxc3+ {[%emt 0:07:15]} 9. bxc3 {[%emt 0:00:06]} g5 {[%emt 0:05:48]} 10. Bg3 {[%emt 0:00:12]} Ne7 {[%emt 0:02:16]} 11. Bxd7+ {[%emt 0:04:11]} Qxd7 {[%emt 0:05:16]} 12. Nd2 {[%emt 0:00:25]} Ng6 {[%emt 0:00:48]} 13. f3 {[%emt 0:02:41]} h5 {[%emt 0:06:46]} 14. Qb1 {[%emt 0:03:49]} b6 {[%emt 0:04:56]} 15. a4 {[%emt 0:00:48]} a5 {[%emt 0:00:12]} (15... h4 $5 {[%cal Rh4g3]} 16. Bf2 Nf4 $15) 16. d4 {[%emt 0:14:31]} (16. h4 $11 {was the only way to keep the balance.}) 16... h4 {[%emt 0:10:17]} 17. Bf2 {[%emt 0:00:59]} Nf4 {[%emt 0:00:04]} 18. Rg1 {[%emt 0:01:55]} g4 {[%emt 0:01:43]} 19. Qb5 {[%emt 0:01:47]} Qxb5 {[%emt 0:06:09]} 20. axb5 {[%emt 0:00:03]} O-O-O {[%emt 0:01:19]} 21. Be3 {[%emt 0:02:18]} h3 $17 {[%emt 0:10:14]} 22. Bxf4 {[%emt 0:16:37]} exf4 {[%emt 0:00:06]} 23. O-O-O {[%emt 0:01:20]} g3 {[%emt 0:09:58]} 24. Nf1 {[%emt 0:02:09]} Rdg8 {[%emt 0:02:15]} 25. Rd2 {[%emt 0:01:31]} gxh2 {[%emt 0:04:13]} 26. Nxh2 {[%emt 0:00:19]} Rh5 {[%emt 0:00:17]} 27. c4 {[%emt 0:04:59]} Rhg5 {[%emt 0:01:17]} 28. Rh1 {[%emt 0:03:12]} Rxg2 {[%emt 0:05:41]} 29. e5 {[%emt 0:08:28]} dxe5 {[%emt 0:01:31]} 30. dxe5 {[%emt 0:00:45]} Rg1+ {[%emt 0:01:59]} 31. Rd1 {[%emt 0:00:37]} Rxh1 {[%emt 0:00:51]} 32. Rxh1 {[%emt 0:00:01]} Nh7 {[%emt 0:00:52]} 33. Nf1 {[%emt 0:05:30]} Ng5 {[%emt 0:00:40]} 34. Rg1 {[%emt 0:00:13]} Rg6 {[%emt 0:00:07]} 35. Nh2 {[%emt 0:02:44]} Ne6 {[%emt 0:02:44]} 36. Ng4 {[%emt 0:01:17]} Nd4 {[%emt 0:03:45]} 37. Rh1 {[%emt 0:00:48]} Nxf3 {[%emt 0:00:07]} 38. Rxh3 {[%emt 0:00:08]} Rxg4 {[%emt 0:00:10]} 39. Rxf3 {[%emt 0:00:02]} Kd7 {[%emt 0:00:15]} 40. c5 {[%emt 0:00:38]} Ke6 {[%emt 0:00:40]} 41. c6 {[%emt 0:30:53]} Kxe5 {[%emt 0:31:46]} 42. Rd3 {[%emt 0:00:01]} f5 {[%emt 0:00:56]} 43. Kd1 {[%emt 0:00:54]} Rg1+ {[%emt 0:01:44]} 44. Ke2 {[%emt 0:00:12]} Rg2+ {[%emt 0:00:04]} 45. Kd1 {[%emt 0:00:12]} Ke4 {[%emt 0:00:26]} 46. Rd7 {[%emt 0:00:14]} f3 {[%emt 0:00:14]} 47. Ke1 {[%emt 0:00:36]} Rxc2 {[%emt 0:00:14]} 48. Rxc7 {[%emt 0:00:04]} f2+ {[%emt 0:00:11]} 49. Kf1 {[%emt 0:00:09]} Kf3 {[%emt 0:00:04]} 0-1

[Event "CZE-tht Extraliga 2018-19"]
[Site "Czech Republic"]
[Date "2019.02.09"]
[Round "7"]
[White "Cech, Pavel"]
[Black "Bures, Jaroslav"]
[Result "1/2-1/2"]
[ECO "A45"]
[WhiteElo "2325"]
[BlackElo "2395"]
[Annotator "NA"]
[PlyCount "109"]
[EventDate "2018.11.03"]
[EventType "team-tourn"]
[EventCountry "CZE"]
[SourceTitle "playchess.com"]
[Source "ChessBase"]
[SourceQuality "1"]
[WhiteTeam "Turnov"]
[BlackTeam "Poruba"]
[TimeControl "40/5400+30:1800+30"]

1. d4 {[%emt 0:00:00]} Nf6 {[%emt 0:00:00]} 2. Bg5 {[%emt 0:00:16]} d5 {[%emt 0:00:00]} 3. e3 {[%emt 0:01:49]} c5 {[%emt 0:00:00]} 4. c3 {[%emt 0:00:41]} Qb6 {[%emt 0:00:01]} 5. Qc1 {[%emt 0:03:01]} cxd4 {[%emt 0:02:29]} 6. exd4 {[%emt 0:00:27]} h6 {[%emt 0:02:20]} 7. Bh4 {[%emt 0:05:34]} Bf5 {[%emt 0:01:37]} 8. Be2 {[%emt 0:06:58]} Nbd7 {[%emt 0:00:24]} 9. Nf3 {[%emt 0:04:00]} e6 {[%emt 0:00:20]} 10. Nbd2 {[%emt 0:01:36]} Bd6 {[%emt 0:01:01]} 11. O-O {[%emt 0:03:57]} O-O {[%emt 0:00:18]} 12. Re1 {[%emt 0:03:44]} Qc7 13. Bg3 {[%emt 0:02:11]} Bxg3 {[%emt 0:11:06]} 14. hxg3 {[%emt 0:00:36]} Bh7 {[%emt 0:00:04]} 15. Bf1 {[%emt 0:06:51]} a6 {[%emt 0:02:04]} 16. a4 {[%emt 0:00:40]} Rfe8 {[%emt 0:00:02]} 17. Nb3 {[%emt 0:24:16]} Ne4 {[%emt 0:03:17]} 18. Qf4 {[%emt 0:02:19]} Qb6 {[%emt 0:03:49]} 19. Ra3 {[%emt 0:00:09]} f6 {[%emt 0:09:11]} 20. a5 {[%emt 0:02:12]} Qc6 $11 {[%emt 0:00:20]} 21. Nbd2 {[%emt 0:09:51]} e5 {[%emt 0:00:05]} 22. Qh4 {[%emt 0:00:37]} Nd6 {[%emt 0:13:30]} 23. dxe5 {[%emt 0:03:13]} fxe5 {[%emt 0:00:05]} 24. g4 {[%emt 0:01:33]} Nf7 {[%emt 0:00:57]} 25. Qg3 {[%emt 0:06:48]} Qf6 {[%emt 0:01:22]} 26. Rb3 {[%emt 0:01:21]} Rab8 {[%emt 0:01:33]} 27. Rb4 {[%emt 0:01:14]} Qd8 {[%emt 0:03:52]} 28. Nb3 {[%emt 0:01:30]} Bc2 {[%emt 0:02:40]} 29. Na1 {[%emt 0:01:35]} Be4 {[%emt 0:02:52]} 30. Nb3 {[%emt 0:00:03]} b5 {[%emt 0:05:52]} 31. axb6 {[%emt 0:00:55]} Rxb6 {[%emt 0:00:04]} 32. Ra1 {[%emt 0:00:58]} Rxb4 {[%emt 0:04:29]} 33. cxb4 {[%emt 0:00:03]} Qb6 {[%emt 0:00:02]} 34. Nbd2 {[%emt 0:01:25]} Qxb4 {[%emt 0:03:58]} 35. g5 {[%emt 0:00:43]} Bxf3 {[%emt 0:05:48]} 36. Nxf3 {[%emt 0:00:06]} a5 {[%emt 0:08:24]} 37. gxh6 {[%emt 0:00:39]} Nxh6 {[%emt 0:00:07]} 38. Qg6 {[%emt 0:00:40]} Nf6 {[%emt 0:06:12]} 39. Ng5 {[%emt 0:00:04]} Qb6 {[%emt 0:05:46]} 40. Ra3 {[%emt 0:01:59]} Rb8 {[%emt 0:03:14]} 41. Rh3 {[%emt 0:09:52]} Nfg4 {[%emt 0:04:06]} 42. Qh7+ {[%emt 0:04:56]} Kf8 {[%emt 0:00:04]} 43. Rf3+ {[%emt 0:01:34]} Nf6 {[%emt 0:00:42]} 44. Rxf6+ {[%emt 0:07:42]} Qxf6 {[%emt 0:00:15]} 45. Qh8+ {[%emt 0:00:15]} Ke7 {[%emt 0:00:02]} 46. Qxb8 {[%emt 0:00:05]} Qxg5 {[%emt 0:00:03]} 47. Qc7+ {[%emt 0:01:08]} Kf8 {[%emt 0:01:43]} 48. Qd6+ {[%emt 0:00:17]} Qe7 {[%emt 0:01:53]} 49. Qxd5 {[%emt 0:00:08]} Qc7 {[%emt 0:02:38]} 50. Bc4 {[%emt 0:00:09]} g6 {[%emt 0:00:05]} 51. g3 {[%emt 0:05:25]} Kg7 {[%emt 0:00:25]} 52. Kg2 {[%emt 0:00:13]} Nf5 {[%emt 0:02:16]} 53. Qg8+ {[%emt 0:00:25]} Kf6 {[%emt 0:00:33]} 54. Bd5 {[%emt 0:01:14]} Kg5 {[%emt 0:03:19]} 55. Be4 {[%emt 0:01:55]} 1/2-1/2

[Event "CZE-tht Extraliga 2018-19"]
[Site "Czech Republic"]
[Date "2019.02.09"]
[Round "7.2"]
[White "Velicka, Petr"]
[Black "Hracek, Zbynek"]
[Result "0-1"]
[ECO "C50"]
[WhiteElo "2434"]
[BlackElo "2568"]
[Annotator "ChessBase"]
[PlyCount "102"]
[EventDate "2018.11.03"]
[EventType "team-tourn"]
[EventCountry "CZE"]
[SourceTitle "playchess.com"]
[Source "ChessBase"]
[SourceQuality "1"]
[WhiteTeam "Ostrava"]
[BlackTeam "Pardubice"]
[TimeControl "40/5400+30:1800+30"]

1. e4 {[%emt 0:00:00]} e5 {[%emt 0:00:00]} 2. Nf3 {[%emt 0:00:00]} Nc6 {[%emt 0:00:00]} 3. Bc4 {[%emt 0:00:02]} Bc5 {[%emt 0:00:00]} 4. O-O {[%emt 0:00:32]} Nf6 {[%emt 0:00:12]} 5. d3 {[%emt 0:00:06]} d6 {[%emt 0:00:57]} 6. c3 {[%emt 0:00:51]} a6 {[%emt 0:01:41]} 7. Bb3 {[%emt 0:00:10]} Ba7 {[%emt 0:00:46]} 8. h3 {[%emt 0:00:31]} h6 {[%emt 0:00:22]} 9. Re1 {[%emt 0:03:27]} g5 {[%emt 0:05:06]} 10. Nh2 {[%emt 0:10:02]} Rg8 {[%emt 0:06:15]} 11. Ng4 {[%emt 0:03:01]} Bxg4 {[%emt 0:02:56]} 12. hxg4 {[%emt 0:00:11]} Qd7 {[%emt 0:00:06]} 13. Qf3 {[%emt 0:16:13]} Nxg4 {[%emt 0:00:42]} 14. Re2 {[%emt 0:00:40]} Rf8 {[%emt 0:16:19]} 15. Nd2 {[%emt 0:07:23]} O-O-O {[%emt 0:21:32]} 16. Nf1 {[%emt 0:03:05]} f5 {[%emt 0:04:09]} 17. exf5 {[%emt 0:01:29]} Nxf2 {[%emt 0:01:07]} 18. Be6 {[%emt 0:15:53]} Qxe6 {[%emt 0:00:09]} 19. fxe6 {[%emt 0:00:11]} Rxf3 {[%emt 0:00:07]} 20. gxf3 {[%emt 0:00:31]} Nxd3+ {[%emt 0:00:07]} 21. Be3 {[%emt 0:00:30]} Re8 {[%emt 0:02:10]} 22. Bxa7 {[%emt 0:01:57]} Nxa7 {[%emt 0:00:02]} 23. Rh2 {[%emt 0:00:58]} Rxe6 {[%emt 0:00:05]} 24. Ne3 {[%emt 0:00:31]} Nf4 {[%emt 0:09:12]} 25. Kh1 {[%emt 0:10:09]} Nc6 {[%emt 0:10:29]} 26. Nf5 {[%emt 0:00:46]} h5 {[%emt 0:00:30]} 27. Ng7 {[%emt 0:00:10]} Rh6 {[%emt 0:01:34]} 28. Rg1 {[%emt 0:00:48]} Ne7 {[%emt 0:00:50]} 29. Rxg5 {[%emt 0:00:42]} h4 {[%emt 0:00:12]} 30. Nf5 {[%emt 0:01:42]} Nxf5 {[%emt 0:00:07]} 31. Rxf5 {[%emt 0:00:38]} b5 {[%emt 0:01:16]} 32. Rg5 {[%emt 0:01:54]} Kb7 {[%emt 0:00:33]} 33. Rd2 {[%emt 0:00:49]} a5 {[%emt 0:02:30]} 34. a3 {[%emt 0:03:27]} a4 {[%emt 0:03:06]} 35. Kh2 {[%emt 0:01:06]} Rf6 {[%emt 0:01:48]} 36. Rg4 {[%emt 0:00:37]} h3 {[%emt 0:00:17]} 37. Rg7 {[%emt 0:02:47]} Kb6 {[%emt 0:01:43]} 38. Rc2 {[%emt 0:02:55]} d5 {[%emt 0:02:42]} 39. Rg5 {[%emt 0:01:02]} Nd3 {[%emt 0:01:53]} 40. Rg3 {[%emt 0:03:24]} Ne1 {[%emt 0:02:05]} 41. Rf2 {[%emt 0:31:36]} e4 {[%emt 0:30:30]} 42. f4 {[%emt 0:05:42]} Nd3 {[%emt 0:00:07]} 43. Rxd3 {[%emt 0:00:07]} exd3 {[%emt 0:00:02]} 44. Kxh3 {[%emt 0:00:12]} d2 {[%emt 0:02:47]} 45. Rxd2 {[%emt 0:00:18]} Rxf4 {[%emt 0:00:02]} 46. Kg3 {[%emt 0:02:52]} Rf5 {[%emt 0:00:02]} 47. Kg2 {[%emt 0:00:00]} Kc5 {[%emt 0:00:00]} 48. Rd4 {[%emt 0:00:00]} Re5 {[%emt 0:00:00]} 49. b4+ {[%emt 0:00:00]} axb3 {[%emt 0:00:00]} 50. Rb4 {[%emt 0:00:00]} Re4 {[%emt 0:00:00]} 51. Rxb3 {[%emt 0:00:00]} Ra4 {[%emt 0:00:00]} 0-1

[Event "CZE-tht Extraliga 2018-19"]
[Site "Czech Republic"]
[Date "2019.02.09"]
[Round "7.2"]
[White "Vavra, Pavel"]
[Black "Stohl, Igor"]
[Result "1-0"]
[ECO "A45"]
[WhiteElo "2348"]
[BlackElo "2488"]
[Annotator "ChessBase"]
[PlyCount "119"]
[EventDate "2018.11.03"]
[EventType "team-tourn"]
[EventCountry "CZE"]
[SourceTitle "playchess.com"]
[Source "ChessBase"]
[SourceQuality "1"]
[WhiteTeam "Siesta B"]
[BlackTeam "Brno"]
[TimeControl "40/5400+30:1800+30"]

1. d4 {[%emt 0:00:00]} Nf6 {[%emt 0:00:07]} 2. Bg5 {[%emt 0:00:00]} Ne4 {[%emt 0:00:33]} 3. Bf4 {[%emt 0:00:00]} d5 {[%emt 0:00:14]} 4. e3 {[%emt 0:00:14]} c5 {[%emt 0:00:28]} 5. Bd3 {[%emt 0:00:20]} Nf6 {[%emt 0:00:35]} 6. c3 {[%emt 0:07:33]} Nc6 {[%emt 0:00:55]} 7. Nd2 {[%emt 0:01:26]} Bg4 {[%emt 0:01:04]} 8. Ngf3 {[%emt 0:20:16]} e6 {[%emt 0:00:52]} 9. h3 {[%emt 0:11:44]} Bh5 {[%emt 0:01:20]} 10. Bb5 {[%emt 0:00:06]} Nd7 {[%emt 0:04:32]} 11. Qa4 {[%emt 0:09:38]} Qc8 {[%emt 0:24:22]} 12. g4 {[%emt 0:15:11]} Bg6 {[%emt 0:01:18]} 13. Nh4 {[%emt 0:00:27]} a6 {[%emt 0:08:57]} 14. Bf1 {[%emt 0:03:38]} Be7 {[%emt 0:16:56]} 15. Nxg6 {[%emt 0:00:24]} hxg6 {[%emt 0:00:02]} 16. Bg2 {[%emt 0:01:18]} b5 {[%emt 0:04:36]} 17. Qd1 {[%emt 0:00:05]} cxd4 {[%emt 0:01:00]} 18. exd4 {[%emt 0:01:12]} Qd8 {[%emt 0:04:39]} 19. O-O {[%emt 0:04:13]} Nb6 {[%emt 0:03:31]} 20. Qe2 {[%emt 0:04:37]} O-O {[%emt 0:02:40]} 21. Bg3 {[%emt 0:03:46]} b4 {[%emt 0:03:55]} 22. Qd3 {[%emt 0:03:25]} Bd6 {[%emt 0:03:45]} 23. Bxd6 {[%emt 0:01:45]} Qxd6 {[%emt 0:00:02]} 24. f4 {[%emt 0:00:06]} bxc3 {[%emt 0:03:25]} 25. bxc3 {[%emt 0:00:05]} Ne7 {[%emt 0:00:51]} 26. a4 {[%emt 0:04:38]} Rfc8 {[%emt 0:02:47]} 27. Qe3 {[%emt 0:00:14]} Nc4 {[%emt 0:01:03]} 28. Nxc4 {[%emt 0:00:06]} Rxc4 {[%emt 0:00:05]} 29. Rfc1 {[%emt 0:00:54]} Rac8 {[%emt 0:03:13]} 30. Bf1 {[%emt 0:00:20]} R4c6 {[%emt 0:00:20]} 31. a5 {[%emt 0:01:30]} Rb8 {[%emt 0:01:53]} 32. Rab1 {[%emt 0:01:58]} Rxb1 33. Rxb1 Qc7 {[%emt 0:02:25]} 34. Qe5 {[%emt 0:00:05]} Rxc3 {[%emt 0:00:43]} 35. Qxc7 {[%emt 0:00:16]} Rxc7 {[%emt 0:00:01]} 36. Bxa6 {[%emt 0:00:12]} Ra7 {[%emt 0:01:23]} 37. Rb8+ {[%emt 0:02:30]} Kh7 {[%emt 0:00:02]} 38. Rb6 {[%emt 0:00:09]} Ra8 {[%emt 0:01:18]} 39. Kf2 {[%emt 0:00:21]} Nc8 {[%emt 0:00:21]} 40. Rc6 {[%emt 0:00:41]} Ne7 {[%emt 0:00:34]} 41. Rb6 {[%emt 0:33:05]} Ng8 {[%emt 0:02:45]} 42. g5 {[%emt 0:00:00]} Ne7 {[%emt 0:00:38]} 43. Ke2 {[%emt 0:00:00]} Nf5 {[%emt 0:10:00]} 44. Kd3 {[%emt 0:00:00]} Ng3 {[%emt 0:00:49]} 45. Kc3 {[%emt 0:00:00]} Nh5 {[%emt 0:00:15]} 46. Kb4 {[%emt 0:00:00]} Nxf4 {[%emt 0:00:18]} 47. Bf1 {[%emt 0:00:00]} e5 {[%emt 0:01:49]} 48. dxe5 {[%emt 0:00:00]} d4 {[%emt 0:00:40]} 49. Rd6 {[%emt 0:00:00]} Rb8+ {[%emt 0:01:33]} 50. Bb5 {[%emt 0:00:00]} Nd3+ {[%emt 0:06:44]} 51. Kc4 {[%emt 0:00:03]} Nxe5+ {[%emt 0:00:20]} 52. Kc5 {[%emt 0:00:02]} Nf3 {[%emt 0:02:29]} 53. Rd5 {[%emt 0:01:50]} f6 {[%emt 0:04:42]} 54. gxf6 {[%emt 0:00:13]} gxf6 {[%emt 0:00:07]} 55. a6 {[%emt 0:00:25]} Ng5 {[%emt 0:02:25]} 56. Rd7+ {[%emt 0:00:15]} Kh6 {[%emt 0:00:08]} 57. a7 {[%emt 0:00:18]} Ra8 {[%emt 0:00:19]} 58. Bc6 {[%emt 0:01:19]} Rxa7 {[%emt 0:00:13]} 59. Rxa7 {[%emt 0:00:05]} Nxh3 {[%emt 0:00:24]} 60. Kxd4 {[%emt 0:00:10]} 1-0